[Event "Kvibergspelen September 2019"]
[Site "Prioritet Serneke Arena, Krutvagen 2, Gothenburg, Sweden"]
[Date "2019.09.27"]
[Round "3.20"]
[White "Andersson, Christer"]
[Black "Kumar, Rahul"]
[Result "0-1"]
[TimeControl "15 minutes + 5 seconds per move from move one (Round 1 - 4) / 90 minutes + 30 seconds per move from move one (Round 5 - 8)"]
[WhiteFideId "1734857"]
[BlackFideId "5010969"]
[WhiteElo "1672"]
[BlackElo "2158"]

1. Nf3 g6 2. d4 {[%clk 00:15:08]} Bg7 {[%emt 01:04:33]} 3. c3 Nf6 {[%clk
00:14:45]} 4. Bg5 {[%clk 00:14:55]} {[%emt 00:00:14]} c5 {[%clk 00:14:31]}
{[%emt 00:00:19]} 5. e3 {[%clk 00:14:56]} {[%emt 00:00:04]} O-O {[%clk
00:14:00]} {[%emt 00:00:35]} 6. Be2 {[%clk 00:14:59]} {[%emt 00:00:03]} d6
{[%clk 00:13:57]} {[%emt 00:00:08]} 7. O-O {[%clk 00:14:57]} {[%emt 00:00:07]}
Qb6 {[%clk 00:13:57]} {[%emt 00:00:05]} 8. Qc2 {[%clk 00:14:55]} {[%emt
00:00:08]} Bf5 {[%clk 00:13:57]} {[%emt 00:00:04]} 9. Qc1 {[%clk 00:14:53]}
{[%emt 00:00:07]} Nc6 {[%clk 00:13:56]} {[%emt 00:00:07]} 10. Nbd2 {[%clk
00:14:54]} {[%emt 00:00:04]} cxd4 {[%clk 00:13:52]} {[%emt 00:00:08]} 11. exd4
{[%clk 00:14:56]} {[%emt 00:00:03]} Rac8 {[%clk 00:13:55]} {[%emt 00:00:01]} 12.
Nb3 {[%clk 00:14:47]} {[%emt 00:00:16]} a5 {[%clk 00:13:55]} {[%emt 00:00:05]}
13. Bxf6 {[%clk 00:14:45]} {[%emt 00:00:06]} Bxf6 {[%clk 00:13:52]} {[%emt
00:00:08]} 14. Qd2 {[%clk 00:14:41]} {[%emt 00:00:09]} a4 {[%clk 00:13:51]}
{[%emt 00:00:06]} 15. Nc1 {[%clk 00:14:45]} {[%emt 00:00:01]} e5 {[%clk
00:13:17]} {[%emt 00:00:39]} 16. d5 {[%clk 00:14:39]} {[%emt 00:00:12]} Na5
{[%clk 00:13:10]} {[%emt 00:00:11]} 17. h3 {[%clk 00:14:01]} {[%emt 00:00:43]}
Rc5 {[%clk 00:11:39]} {[%emt 00:01:36]} 18. Rd1 {[%clk 00:13:49]} {[%emt
00:00:18]} Be4 {[%clk 00:10:11]} {[%emt 00:01:32]} 19. Qe3 {[%clk 00:11:39]}
{[%emt 00:02:15]} Bc2 {[%clk 00:10:08]} {[%emt 00:00:08]} 20. b4 {[%clk
00:10:36]} {[%emt 00:01:08]} axb3 {[%clk 00:10:03]} {[%emt 00:00:09]} 21. Nxb3
{[%clk 00:10:34]} {[%emt 00:00:07]} Nxb3 {[%clk 00:10:00]} {[%emt 00:00:08]} 22.
axb3 {[%clk 00:10:32]} {[%emt 00:00:08]} Qxb3 {[%clk 00:09:35]} {[%emt
00:00:29]} 23. c4 {[%clk 00:09:53]} {[%emt 00:00:44]} Bxd1 {[%clk 00:09:33]}
{[%emt 00:00:07]} 24. Rxd1 {[%clk 00:09:57]} {[%emt 00:00:02]} Qxe3 {[%clk
00:09:00]} {[%emt 00:00:37]} 25. fxe3 {[%clk 00:10:00]} {[%emt 00:00:02]} e4
{[%clk 00:08:21]} {[%emt 00:00:44]} 26. Nd2 {[%clk 00:09:39]} {[%emt 00:00:26]}
Re8 {[%clk 00:08:24]} {[%emt 00:00:02]} 27. Nb3 {[%clk 00:09:33]} {[%emt
00:00:12]} Rc7 {[%clk 00:08:26]} {[%emt 00:00:02]} 28. Rb1 {[%clk 00:09:01]}
{[%emt 00:00:37]} Bg5 {[%clk 00:07:37]} {[%emt 00:00:53]} 29. Kf2 {[%clk
00:08:59]} {[%emt 00:00:08]} Re5 {[%clk 00:07:38]} {[%emt 00:00:03]} 30. g4
{[%clk 00:08:37]} {[%emt 00:00:27]} f5 {[%clk 00:07:41]} {[%emt 00:00:02]} 31.
Nd4 {[%clk 00:08:18]} {[%emt 00:00:25]} Rf7 {[%clk 00:07:33]} {[%emt 00:00:13]}
32. gxf5 {[%clk 00:07:01]} {[%emt 00:01:22]} gxf5 {[%clk 00:06:59]} {[%emt
00:00:38]} 33. Bh5 {[%clk 00:06:21]} {[%emt 00:00:45]} Bh4+ {[%clk 00:06:27]}
{[%emt 00:00:37]} 34. Kf1 {[%clk 00:04:51]} {[%emt 00:01:35]} Rfe7 {[%clk
00:05:08]} {[%emt 00:01:24]} 35. Ne6 {[%clk 00:04:20]} {[%emt 00:00:36]} R5xe6
{[%clk 00:03:33]} {[%emt 00:01:40]} 36. dxe6 {[%clk 00:04:20]} {[%emt
00:00:05]} Kg7 {[%clk 00:03:37]} 37. Bf7 {[%clk 00:04:02]} {[%emt 00:00:25]}
Kf6 {[%clk 00:03:40]} {[%emt 00:00:01]} 38. Kg2 {[%clk 00:03:01]} {[%emt
00:01:07]} Rc7 {[%clk 00:03:37]} {[%emt 00:00:07]} 39. Rb4 {[%clk 00:02:07]}
{[%emt 00:00:59]} Bg5 {[%clk 00:03:07]} {[%emt 00:00:34]} 40. Kf2 {[%clk
00:02:08]} {[%emt 00:00:05]} h5 {[%clk 00:02:38]} {[%emt 00:00:34]} 41. Ra4
{[%clk 00:01:59]} {[%emt 00:00:15]} h4 {[%clk 00:02:40]} {[%emt 00:00:02]} 42.
Rb4 {[%clk 00:00:57]} {[%emt 00:01:08]} Bh6 {[%clk 00:02:43]} {[%emt 00:00:02]}
43. Ra4 {[%clk 00:00:43]} {[%emt 00:00:19]} Bf8 {[%clk 00:02:46]} {[%emt
00:00:01]} 44. Ra8 {[%clk 00:00:40]} {[%emt 00:00:09]} Be7 {[%clk 00:02:36]}
{[%emt 00:00:15]} 45. Ra4 {[%clk 00:00:35]} {[%emt 00:00:10]} Rc6 {[%clk
00:01:53]} {[%emt 00:00:48]} 46. Ke2 {[%clk 00:00:38]} {[%emt 00:00:02]} Rb6
{[%clk 00:01:52]} {[%emt 00:00:04]} 47. Ra2 {[%clk 00:00:28]} {[%emt 00:00:16]}
Rb4 {[%emt 00:00:08]} 48. Rc2 Ra4 {[%clk 00:01:18]} {[%emt 00:00:35]} 49. Kd2
{[%clk 00:00:31]} {[%emt 00:00:07]} Ra3 {[%clk 00:01:14]} {[%emt 00:00:09]} 50.
Rb2 {[%clk 00:00:25]} {[%emt 00:00:12]} Ra7 {[%clk 00:01:15]} {[%emt 00:00:03]}
51. Kc3 {[%clk 00:00:21]} {[%emt 00:00:09]} Kg7 {[%clk 00:01:11]} {[%emt
00:00:09]} 52. Kc2 {[%clk 00:00:10]} {[%emt 00:00:17]} Bg5 {[%clk 00:01:13]}
{[%emt 00:00:02]} 53. Kd2 {[%clk 00:00:07]} {[%emt 00:00:07]} Kf6 {[%clk
00:01:14]} {[%emt 00:00:04]} 54. Bg8 {[%clk 00:00:07]} {[%emt 00:00:06]} Ke7
{[%clk 00:01:01]} {[%emt 00:00:17]} 55. Bf7 {[%clk 00:00:11]} {[%emt 00:00:01]}
Bf6 {[%clk 00:00:56]} {[%emt 00:00:11]} 56. Rb5 {[%clk 00:00:13]} {[%emt
00:00:03]} Be5 {[%clk 00:00:53]} {[%emt 00:00:07]} 57. Rb3 {[%clk 00:00:12]}
{[%emt 00:00:06]} Kf6 {[%clk 00:00:56]} {[%emt 00:00:03]} 58. Ke1 {[%clk
00:00:13]} {[%emt 00:00:04]} Kg7 {[%clk 00:00:36]} {[%emt 00:00:25]} 59. Kf1
{[%clk 00:00:16]} {[%emt 00:00:02]} Bf6 {[%clk 00:00:39]} {[%emt 00:00:02]} 60.
Rb6 {[%clk 00:00:20]} {[%emt 00:00:02]} Be7 {[%clk 00:00:41]} {[%emt 00:00:02]}
61. Rb5 {[%clk 00:00:22]} {[%emt 00:00:03]} Kf6 {[%clk 00:00:45]} {[%emt
00:00:01]} 62. Rb3 {[%clk 00:00:26]} Ra4 {[%clk 00:00:48]} {[%emt 00:00:02]} 63.
Rxb7 {[%emt 00:00:06]} Rxc4 {[%clk 00:00:52]} {[%emt 00:00:01]} 64. Rb8 {[%clk
00:00:23]} {[%emt 00:00:07]} Rc1+ {[%clk 00:00:53]} {[%emt 00:00:04]} 65. Kg2
{[%clk 00:00:26]} {[%emt 00:00:03]} Re1 {[%clk 00:00:53]} {[%emt 00:00:04]} 66.
Kf2 {[%clk 00:00:30]} Rh1 {[%clk 00:00:55]} {[%emt 00:00:04]} 67. Kg2 {[%clk
00:00:35]} Rc1 {[%clk 00:00:55]} {[%emt 00:00:05]} 68. Rh8 {[%clk 00:00:36]}
{[%emt 00:00:04]} Rc2+ {[%emt 00:00:14]} 69. Kf1 {[%clk 00:00:31]} {[%emt
00:00:03]} Ke5 {[%clk 00:00:54]} {[%emt 00:00:04]} 70. Rh7 {[%clk 00:00:34]}
{[%emt 00:00:02]} Rc7 {[%clk 00:00:48]} {[%emt 00:00:11]} 71. Bg8 {[%clk
00:00:34]} {[%emt 00:00:05]} d5 {[%clk 00:00:48]} {[%emt 00:00:06]} 72. Ke2
{[%clk 00:00:30]} {[%emt 00:00:09]} d4 {[%clk 00:00:41]} {[%emt 00:00:11]} 73.
exd4+ {[%emt 00:00:08]} Kxd4 {[%clk 00:00:45]} 74. Rh5 {[%clk 00:00:22]} {[%emt
00:00:11]} f4 {[%clk 00:00:45]} {[%emt 00:00:04]} 75. Rf5 {[%clk 00:00:20]}
{[%emt 00:00:08]} Rc2+ {[%clk 00:00:48]} {[%emt 00:00:02]} 76. Kd1 {[%clk
00:00:24]} Rg2 {[%clk 00:00:44]} {[%emt 00:00:09]} 77. Rxf4 {[%clk 00:00:27]}
{[%emt 00:00:02]} Rxg8 {[%clk 00:00:48]} {[%emt 00:00:02]} 78. Rf7 {[%clk
00:00:29]} {[%emt 00:00:03]} Kd3 {[%clk 00:00:50]} {[%emt 00:00:03]} 79. Kc1
{[%clk 00:00:29]} {[%emt 00:00:05]} Kc3 {[%clk 00:00:43]} {[%emt 00:00:11]} 80.
Kd1 {[%clk 00:00:33]} {[%emt 00:00:02]} Kd3 {[%clk 00:00:30]} {[%emt 00:00:18]}
81. Ke1 {[%clk 00:00:37]} Bc5 {[%clk 00:00:34]} {[%emt 00:00:01]} 0-1

[Event "Kvibergspelen September 2019"]
[Site "Prioritet Serneke Arena, Krutvagen 2, Gothenburg, Sweden"]
[Date "2019.09.27"]
[Round "4.1"]
[White "Seo, Jung Min"]
[Black "Schandorff, Lars"]
[Result "1/2-1/2"]
[TimeControl "15 minutes + 5 seconds per move from move one (Round 1 - 4) / 90 minutes + 30 seconds per move from move one (Round 5 - 8)"]
[WhiteTitle "FM"]
[BlackTitle "GM"]
[WhiteFideId "1734687"]
[BlackFideId "1400070"]
[WhiteElo "2437"]
[BlackElo "2496"]

1. d4 {[%clk 00:15:09]} {[%emt 00:24:58]} Nf6 {[%clk 00:15:08]} {[%emt
00:00:03]} 2. c4 {[%clk 00:15:13]} e6 {[%clk 00:15:10]} {[%emt 00:00:02]} 3.
Nc3 {[%clk 00:15:11]} {[%emt 00:00:08]} d5 {[%clk 00:15:12]} {[%emt 00:00:03]}
4. Nf3 {[%clk 00:15:08]} {[%emt 00:00:09]} Nbd7 {[%clk 00:15:01]} {[%emt
00:00:16]} 5. Bg5 {[%clk 00:14:21]} {[%emt 00:00:51]} Be7 {[%clk 00:15:02]}
{[%emt 00:00:04]} 6. e3 {[%clk 00:14:25]} {[%emt 00:00:02]} h6 {[%clk
00:15:05]} {[%emt 00:00:02]} 7. Bh4 {[%clk 00:14:21]} {[%emt 00:00:08]} O-O
{[%clk 00:15:04]} {[%emt 00:00:06]} 8. Rc1 {[%clk 00:13:57]} {[%emt 00:00:30]}
c5 {[%clk 00:14:43]} {[%emt 00:00:26]} 9. cxd5 {[%clk 00:13:48]} {[%emt
00:00:14]} Nxd5 {[%clk 00:14:20]} {[%emt 00:00:27]} 10. Bxe7 {[%clk 00:13:50]}
{[%emt 00:00:03]} Nxe7 {[%clk 00:14:20]} {[%emt 00:00:06]} 11. Be2 {[%clk
00:13:38]} {[%emt 00:00:17]} cxd4 {[%clk 00:13:42]} {[%emt 00:00:43]} 12. Qxd4
{[%clk 00:13:28]} {[%emt 00:00:15]} Nf6 {[%clk 00:13:01]} {[%emt 00:00:45]} 13.
O-O {[%clk 00:13:07]} {[%emt 00:00:27]} Qxd4 {[%clk 00:12:52]} {[%emt
00:00:14]} 14. Nxd4 {[%clk 00:13:11]} Bd7 {[%clk 00:12:35]} {[%emt 00:00:22]}
15. Bf3 {[%clk 00:12:50]} {[%emt 00:00:25]} Rab8 {[%clk 00:11:47]} {[%emt
00:00:54]} 16. Rfd1 {[%clk 00:12:27]} {[%emt 00:00:27]} Rfd8 {[%clk 00:08:11]}
{[%emt 00:03:42]} 17. h3 {[%clk 00:10:22]} {[%emt 00:02:10]} a6 {[%clk
00:07:24]} {[%emt 00:00:52]} 18. Kf1 {[%clk 00:09:25]} {[%emt 00:01:01]} Kf8
{[%clk 00:07:15]} {[%emt 00:00:14]} 19. Ke1 {[%clk 00:09:19]} {[%emt 00:00:10]}
Ke8 {[%clk 00:06:53]} {[%emt 00:00:27]} 20. Rd2 {[%clk 00:08:30]} {[%emt
00:00:54]} Rdc8 {[%clk 00:06:17]} {[%emt 00:00:42]} 21. Rdd1 {[%clk 00:07:50]}
{[%emt 00:00:45]} Nc6 {[%clk 00:06:06]} {[%emt 00:00:16]} 22. Nxc6 {[%clk
00:07:34]} {[%emt 00:00:21]} Bxc6 {[%clk 00:06:09]} 23. Bxc6+ {[%clk 00:07:38]}
{[%emt 00:00:02]} Rxc6 {[%clk 00:06:12]} {[%emt 00:00:01]} 24. Ne2 {[%clk
00:07:38]} {[%emt 00:00:05]} Rbc8 {[%clk 00:06:10]} {[%emt 00:00:08]} 25. Rxc6
{[%clk 00:07:41]} {[%emt 00:00:02]} Rxc6 {[%clk 00:06:14]} 26. Rc1 {[%clk
00:07:45]} {[%emt 00:00:01]} Rxc1+ {[%clk 00:06:12]} {[%emt 00:00:06]} 27. Nxc1
{[%clk 00:07:49]} {[%emt 00:00:02]} Kd7 {[%clk 00:06:10]} {[%emt 00:00:07]} 28.
Nd3 {[%clk 00:07:50]} {[%emt 00:00:03]} Kd6 {[%clk 00:06:13]} {[%emt 00:00:02]}
29. Kd2 {[%clk 00:07:51]} {[%emt 00:00:05]} Ne4+ {[%clk 00:06:05]} {[%emt
00:00:12]} 30. Kc2 {[%clk 00:07:38]} {[%emt 00:00:18]} Nf6 {[%clk 00:05:54]}
{[%emt 00:00:17]} 31. Kd2 {[%clk 00:07:41]} {[%emt 00:00:01]} Ne4+ {[%clk
00:05:58]} {[%emt 00:00:02]} 32. Kc2 {[%clk 00:07:45]} Nf6 {[%clk 00:06:02]}
{[%emt 00:00:01]} 33. Kd2 {[%clk 00:07:49]} {[%emt 00:00:02]} Ne4+ {[%clk
00:06:04]} {[%emt 00:00:01]} 1/2-1/2

[Event "Kvibergspelen September 2019"]
[Site "Prioritet Serneke Arena, Krutvagen 2, Gothenburg, Sweden"]
[Date "2019.09.27"]
[Round "4.3"]
[White "Hector, Jonny"]
[Black "Muntean, Victor"]
[Result "1-0"]
[TimeControl "15 minutes + 5 seconds per move from move one (Round 1 - 4) / 90 minutes + 30 seconds per move from move one (Round 5 - 8)"]
[WhiteTitle "GM"]
[WhiteFideId "1700090"]
[BlackFideId "1054414"]
[WhiteElo "2477"]
[BlackElo "2020"]

1. e4 {[%clk 00:15:05]} {[%emt 00:00:03]} e5 {[%clk 00:15:08]} {[%emt
00:00:03]} 2. Nf3 {[%clk 00:15:08]} {[%emt 00:00:02]} Nc6 {[%clk 00:15:11]}
{[%emt 00:00:03]} 3. d4 {[%clk 00:15:10]} {[%emt 00:00:02]} exd4 {[%clk
00:15:14]} {[%emt 00:00:03]} 4. Nxd4 {[%clk 00:15:13]} {[%emt 00:00:02]} Bc5
{[%clk 00:15:16]} {[%emt 00:00:03]} 5. Nb3 {[%clk 00:15:11]} {[%emt 00:00:07]}
Bb6 {[%clk 00:15:19]} {[%emt 00:00:03]} 6. Nc3 {[%clk 00:15:12]} {[%emt
00:00:03]} Nf6 {[%clk 00:14:50]} {[%emt 00:00:35]} 7. Qe2 {[%clk 00:15:14]}
{[%emt 00:00:02]} O-O {[%clk 00:14:36]} {[%emt 00:00:19]} 8. Be3 {[%clk
00:15:15]} {[%emt 00:00:04]} d6 {[%clk 00:14:18]} {[%emt 00:00:23]} 9. O-O-O
{[%clk 00:15:10]} {[%emt 00:00:09]} Re8 {[%clk 00:13:32]} {[%emt 00:00:53]} 10.
f3 {[%clk 00:15:10]} {[%emt 00:00:04]} Be6 {[%clk 00:13:35]} {[%emt 00:00:03]}
11. g4 {[%clk 00:14:53]} {[%emt 00:00:21]} Ne5 {[%clk 00:11:18]} {[%emt
00:02:23]} 12. Bxb6 {[%clk 00:13:24]} {[%emt 00:01:33]} axb6 {[%clk 00:11:15]}
{[%emt 00:00:08]} 13. g5 {[%clk 00:12:55]} {[%emt 00:00:33]} Nfd7 {[%clk
00:08:59]} {[%emt 00:02:23]} 14. Qg2 {[%clk 00:12:24]} {[%emt 00:00:35]} f6
{[%clk 00:06:59]} {[%emt 00:02:05]} 15. f4 {[%clk 00:12:12]} {[%emt 00:00:17]}
Nc4 {[%clk 00:05:56]} {[%emt 00:01:09]} 16. f5 {[%clk 00:10:12]} {[%emt
00:02:04]} Ne3 {[%clk 00:05:06]} {[%emt 00:00:55]} 17. Qh3 {[%clk 00:08:06]}
{[%emt 00:02:10]} Bxb3 {[%clk 00:04:18]} {[%emt 00:00:54]} 18. Qxe3 {[%clk
00:07:50]} {[%emt 00:00:21]} Bf7 {[%clk 00:03:21]} {[%emt 00:01:02]} 19. Rg1
{[%clk 00:07:35]} {[%emt 00:00:19]} fxg5 {[%clk 00:02:13]} {[%emt 00:01:14]} 20.
Rxg5 {[%clk 00:07:33]} {[%emt 00:00:06]} Qf6 {[%clk 00:02:13]} {[%emt
00:00:06]} 21. Be2 {[%clk 00:07:24]} {[%emt 00:00:14]} Nc5 {[%clk 00:01:05]}
{[%emt 00:01:13]} 22. Rdg1 {[%clk 00:07:17]} {[%emt 00:00:11]} g6 {[%clk
00:01:09]} {[%emt 00:00:02]} 23. fxg6 {[%clk 00:07:07]} {[%emt 00:00:14]} hxg6
{[%clk 00:01:12]} {[%emt 00:00:03]} 24. Bc4 {[%clk 00:06:35]} {[%emt 00:00:37]}
Ne6 {[%clk 00:00:36]} {[%emt 00:00:41]} 25. Nd5 {[%clk 00:05:45]} {[%emt
00:00:54]} Qg7 {[%clk 00:00:33]} {[%emt 00:00:10]} 26. R5g3 {[%clk 00:05:02]}
{[%emt 00:00:47]} b5 {[%clk 00:00:21]} {[%emt 00:00:17]} 27. Bb3 {[%clk
00:04:10]} {[%emt 00:00:56]} Rac8 {[%clk 00:00:10]} {[%emt 00:00:17]} 28. Nf4
{[%clk 00:03:55]} {[%emt 00:00:19]} Nxf4 {[%clk 00:00:06]} {[%emt 00:00:09]} 29.
Qxf4 {[%clk 00:03:57]} {[%emt 00:00:02]} 1-0

[Event "Kvibergspelen September 2019"]
[Site "Prioritet Serneke Arena, Krutvagen 2, Gothenburg, Sweden"]
[Date "2019.09.27"]
[Round "4.4"]
[White "Nygren, Kim"]
[Black "Hillarp Persson, Tiger"]
[Result "0-1"]
[TimeControl "15 minutes + 5 seconds per move from move one (Round 1 - 4) / 90 minutes + 30 seconds per move from move one (Round 5 - 8)"]
[BlackTitle "GM"]
[WhiteFideId "1706136"]
[BlackFideId "1700812"]
[WhiteElo "2171"]
[BlackElo "2558"]

1. Nf3 {[%clk 00:15:07]} {[%emt 00:00:02]} Nf6 {[%clk 00:15:03]} {[%emt
00:00:08]} 2. e3 {[%clk 00:15:10]} {[%emt 00:00:02]} g6 {[%clk 00:15:05]}
{[%emt 00:00:03]} 3. c4 {[%clk 00:15:13]} {[%emt 00:00:02]} Bg7 {[%clk
00:15:09]} {[%emt 00:00:01]} 4. Nc3 {[%clk 00:15:05]} {[%emt 00:00:13]} O-O
{[%clk 00:14:58]} {[%emt 00:00:16]} 5. Qc2 {[%clk 00:15:04]} {[%emt 00:00:06]}
d6 {[%clk 00:14:59]} {[%emt 00:00:04]} 6. b3 {[%clk 00:15:05]} {[%emt
00:00:04]} e5 {[%clk 00:14:52]} {[%emt 00:00:12]} 7. Bb2 {[%clk 00:15:07]}
{[%emt 00:00:03]} Re8 {[%clk 00:14:38]} {[%emt 00:00:19]} 8. d3 {[%clk
00:15:02]} {[%emt 00:00:10]} c6 {[%clk 00:14:39]} {[%emt 00:00:04]} 9. Be2
{[%clk 00:15:04]} {[%emt 00:00:02]} d5 {[%clk 00:14:13]} {[%emt 00:00:31]} 10.
cxd5 {[%clk 00:15:07]} {[%emt 00:00:03]} cxd5 {[%clk 00:14:17]} {[%emt
00:00:01]} 11. O-O {[%clk 00:14:57]} {[%emt 00:00:14]} Nc6 {[%clk 00:14:19]}
{[%emt 00:00:03]} 12. Rac1 {[%clk 00:14:55]} {[%emt 00:00:07]} a6 {[%clk
00:11:57]} {[%emt 00:02:27]} 13. Na4 {[%clk 00:14:49]} {[%emt 00:00:11]} d4
{[%clk 00:11:10]} {[%emt 00:00:52]} 14. exd4 {[%clk 00:14:20]} {[%emt
00:00:35]} exd4 {[%clk 00:11:12]} {[%emt 00:00:02]} 15. Rfe1 {[%clk 00:14:12]}
{[%emt 00:00:13]} Nd5 {[%clk 00:10:35]} {[%emt 00:00:42]} 16. Bf1 {[%clk
00:14:00]} {[%emt 00:00:17]} Rxe1 {[%clk 00:10:31]} {[%emt 00:00:09]} 17. Rxe1
{[%clk 00:14:00]} {[%emt 00:00:05]} Bg4 {[%clk 00:10:15]} {[%emt 00:00:21]} 18.
Nd2 {[%clk 00:13:50]} {[%emt 00:00:16]} Ncb4 {[%clk 00:09:09]} {[%emt
00:01:11]} 19. Qb1 {[%clk 00:13:40]} {[%emt 00:00:15]} Nc3 {[%clk 00:09:11]}
{[%emt 00:00:03]} 20. Bxc3 {[%clk 00:12:50]} {[%emt 00:00:56]} dxc3 {[%clk
00:09:14]} {[%emt 00:00:02]} 21. Ne4 {[%clk 00:12:53]} {[%emt 00:00:01]} Rc8
{[%clk 00:08:48]} {[%emt 00:00:31]} 22. a3 {[%clk 00:12:21]} {[%emt 00:00:37]}
c2 {[%clk 00:08:36]} {[%emt 00:00:16]} 23. Qd1 {[%emt 00:00:11]} 0-1

[Event "Kvibergspelen September 2019"]
[Site "Prioritet Serneke Arena, Krutvagen 2, Gothenburg, Sweden"]
[Date "2019.09.27"]
[Round "4.5"]
[White "Blomqvist, Erik"]
[Black "Jaksland, Tim"]
[Result "1-0"]
[TimeControl "15 minutes + 5 seconds per move from move one (Round 1 - 4) / 90 minutes + 30 seconds per move from move one (Round 5 - 8)"]
[WhiteTitle "GM"]
[BlackTitle "FM"]
[WhiteFideId "1709437"]
[BlackFideId "1401084"]
[WhiteElo "2519"]
[BlackElo "2214"]

1. e4 {[%clk 00:15:07]} {[%emt 00:00:02]} c5 {[%clk 00:15:08]} {[%emt
00:00:02]} 2. Nf3 {[%clk 00:15:11]} {[%emt 00:00:01]} d6 {[%clk 00:15:12]}
{[%emt 00:00:02]} 3. d4 {[%clk 00:15:13]} {[%emt 00:00:03]} cxd4 {[%clk
00:15:15]} {[%emt 00:00:02]} 4. Qxd4 {[%clk 00:15:16]} {[%emt 00:00:02]} Nc6
{[%clk 00:15:08]} {[%emt 00:00:12]} 5. Qe3 {[%clk 00:15:20]} {[%emt 00:00:01]}
Nf6 {[%clk 00:14:54]} {[%emt 00:00:19]} 6. Be2 {[%clk 00:15:22]} {[%emt
00:00:02]} Bg4 {[%clk 00:13:55]} {[%emt 00:01:05]} 7. O-O {[%clk 00:15:19]}
{[%emt 00:00:08]} e6 {[%clk 00:13:28]} {[%emt 00:00:32]} 8. Rd1 {[%clk
00:14:59]} {[%emt 00:00:24]} Qc7 {[%clk 00:13:31]} {[%emt 00:00:02]} 9. c4
{[%clk 00:14:55]} {[%emt 00:00:09]} Be7 {[%clk 00:13:18]} {[%emt 00:00:18]} 10.
Nc3 {[%clk 00:14:57]} {[%emt 00:00:02]} O-O {[%clk 00:13:08]} {[%emt 00:00:16]}
11. b3 {[%clk 00:15:00]} {[%emt 00:00:01]} Rfd8 {[%clk 00:12:30]} {[%emt
00:00:42]} 12. Bb2 {[%clk 00:15:02]} {[%emt 00:00:03]} a6 {[%clk 00:12:00]}
{[%emt 00:00:36]} 13. Rac1 {[%clk 00:15:05]} {[%emt 00:00:02]} Rac8 {[%clk
00:12:04]} {[%emt 00:00:02]} 14. Nd5 {[%clk 00:14:39]} {[%emt 00:00:30]} exd5
{[%clk 00:11:00]} {[%emt 00:01:09]} 15. cxd5 {[%clk 00:14:42]} {[%emt
00:00:02]} Bxf3 {[%clk 00:10:25]} {[%emt 00:00:39]} 16. Bxf3 {[%clk 00:14:27]}
{[%emt 00:00:20]} Qa5 {[%clk 00:09:48]} {[%emt 00:00:43]} 17. dxc6 {[%clk
00:14:29]} {[%emt 00:00:03]} Rxc6 {[%clk 00:09:14]} {[%emt 00:00:39]} 18. a3
{[%clk 00:12:33]} {[%emt 00:02:01]} Rxc1 {[%clk 00:08:45]} {[%emt 00:00:34]} 19.
Rxc1 {[%clk 00:12:28]} {[%emt 00:00:10]} Nd7 {[%clk 00:08:18]} {[%emt
00:00:33]} 20. b4 {[%clk 00:11:11]} {[%emt 00:01:22]} Qg5 {[%clk 00:07:43]}
{[%emt 00:00:39]} 21. Qxg5 {[%clk 00:11:02]} {[%emt 00:00:14]} Bxg5 {[%clk
00:07:47]} {[%emt 00:00:01]} 22. Rc7 {[%clk 00:11:01]} {[%emt 00:00:06]} Nb6
{[%clk 00:06:53]} {[%emt 00:01:00]} 23. Bd4 {[%clk 00:10:34]} {[%emt 00:00:31]}
Nd7 {[%clk 00:03:49]} {[%emt 00:03:09]} 24. Rxb7 {[%clk 00:10:29]} {[%emt
00:00:10]} Ne5 {[%clk 00:03:26]} {[%emt 00:00:28]} 25. Be2 {[%clk 00:10:20]}
{[%emt 00:00:14]} Rc8 {[%clk 00:03:02]} {[%emt 00:00:29]} 26. g3 {[%clk
00:10:06]} {[%emt 00:00:18]} Bf6 {[%clk 00:02:45]} {[%emt 00:00:22]} 27. Be3
{[%clk 00:09:57]} {[%emt 00:00:14]} h6 {[%clk 00:02:34]} {[%emt 00:00:17]} 28.
Bxa6 {[%clk 00:09:46]} {[%emt 00:00:17]} Nf3+ {[%clk 00:02:20]} {[%emt
00:00:18]} 29. Kg2 {[%clk 00:09:49]} {[%emt 00:00:01]} Ne1+ {[%clk 00:02:22]}
{[%emt 00:00:03]} 30. Kf1 {[%clk 00:09:04]} {[%emt 00:00:50]} Nc2 {[%clk
00:02:25]} {[%emt 00:00:02]} 31. Bf4 {[%clk 00:09:05]} {[%emt 00:00:03]} Nxa3
{[%clk 00:01:45]} {[%emt 00:00:45]} 32. Bxd6 {[%clk 00:09:06]} {[%emt
00:00:04]} Rc6 {[%clk 00:01:43]} {[%emt 00:00:07]} 33. e5 {[%clk 00:06:21]}
{[%emt 00:02:50]} Rxa6 {[%clk 00:00:58]} {[%emt 00:00:50]} 34. b5 {[%clk
00:06:25]} Nxb5 {[%clk 00:00:16]} {[%emt 00:00:48]} 35. Rxb5 {[%clk 00:06:28]}
{[%emt 00:00:02]} g6 {[%clk 00:00:14]} {[%emt 00:00:07]} 36. Rb8+ {[%clk
00:06:04]} {[%emt 00:00:29]} Kh7 {[%clk 00:00:17]} {[%emt 00:00:02]} 37. Rf8
{[%clk 00:05:48]} {[%emt 00:00:20]} Ra1+ {[%clk 00:00:11]} {[%emt 00:00:11]} 38.
Kg2 {[%clk 00:05:52]} {[%emt 00:00:01]} Bg7 {[%clk 00:00:06]} {[%emt 00:00:10]}
39. Rxf7 {[%clk 00:05:55]} {[%emt 00:00:02]} 1-0